Workbook

Sheet INFORME1
A1: AMERICA MOVIL PERU S.A.C.
A3: INFORME 1: RECONCILIACIÓN DEL ESTADO DE LA SITUACIÓN FINANCIERA ESTATUARIO CON EL DE CONTABILIDAD SEPARADA
A5: Periodo de reporte: Enero a Diciembre 2015
A7: Expresado en Miles de Nuevos Soles | B7: Código Plan Contable | C7: Código PCR | D7: Estado de Situación Financiera Estatuaria | E7: Ajustes | F7: Estado de Situación Financiera de Contabilidad Separada | G7: Número de nota 1/.
A8: ACTIVO CORRIENTE | D8: =D9+D10+D11+D12+D13 -> 1478777.596 | E8: =E9+E10+E11+E12+E13 -> -3253.57973 | F8: =F9+F10+F11+F12+F13 -> 1475524.017
A9: Efectivo y equivalentes de efectivo | B9: 10 | C9: 10 | D9: ='[1]Hoja de trabajo'!J354/1000 -> 30927.66358 | E9: ='[1]Hoja de trabajo'!K354/1000 -> 0 | F9: ='[1]Hoja de trabajo'!L354/1000 -> 30927.66358
A10: Cuentas por cobrar a terceros, neto | B10: 12 | C10: 12 | D10: ='[1]Hoja de trabajo'!J433/1000 -> 897202.0823 | E10: ='[1]Hoja de trabajo'!K433/1000 -> -3252.57973 | F10: ='[1]Hoja de trabajo'!L433/1000 -> 893949.5026
A11: Cuentas por cobrar a la principal y vinculadas | B11: 13 | C11: 13 | D11: ='[1]Hoja de trabajo'!J442/1000 -> 5247.94813 | E11: ='[1]Hoja de trabajo'!K442/1000 -> -1 | F11: ='[1]Hoja de trabajo'!L442/1000 -> 5246.94813
A12: Existencias, neto | B12: 20 | C12: 20 | D12: ='[1]Hoja de trabajo'!J463/1000 -> 449252.3768 | E12: ='[1]Hoja de trabajo'!K463/1000 -> 0 | F12: ='[1]Hoja de trabajo'!L463/1000 -> 449252.3768
A13: Impuesto y gastos pagados anticipado | B13: 40 | C13: 40 | D13: ='[1]Hoja de trabajo'!J490/1000 -> 96147.52543 | E13: ='[1]Hoja de trabajo'!K490/1000 -> 0 | F13: ='[1]Hoja de trabajo'!L490/1000 -> 96147.52543
A14: ACTIVO NO CORRIENTE | D14: =+D15+D16+D57+D64+D65+D112+D113 -> 5622440.026 | E14: =+E15+E16+E57+E64+E65+E112+E113 -> -2294850.024 | F14: =+F15+F16+F57+F64+F65+F112+F113 -> 3327590.002
A15: Inversiones | B15: 30 | C15: 30 | D15: ='[1]Hoja de trabajo'!J497/1000 -> 2129837.812 | E15: ='[1]Hoja de trabajo'!K497/1000 -> -2129837.812 | F15: ='[1]Hoja de trabajo'!L497/1000 -> 0
A16: Activo Fijo Bruto | B16: NOTA1 | C16: 30 | D16: =+D17+D49 -> 4932098.977 | E16: =+E17+E49 -> -908046.4909 | F16: =+F17+F49 -> 4024052.486 | G16: 1
A17: Planta y Equipo de Comunicaciones | B17: NOTA1 | C17: 301 | D17: =+D18+D26+D27+D36+D43 -> 3731314.896 | E17: =+E18+E26+E27+E36+E43 -> -1142032.552 | F17: =+F18+F26+F27+F36+F43 -> 2589282.345 | G17: 1
A18: Equipos terminales | B18: NOTA1 | C18: 3011 | D18: =+D19+D20+D21+D22+D23+D24+D25 -> 672776.227 | E18: =+E19+E20+E21+E22+E23+E24+E25 -> -32980.0763 | F18: =+F19+F20+F21+F22+F23+F24+F25 -> 639796.1507 | G18: 1
A19: Equipos terminales -Teléfonos de Abonados | B19: NOTA1 | C19: 30111 | D19: ='[1]Hoja de trabajo'!J502/1000 -> 11597.60757 | E19: ='[1]Hoja de trabajo'!K502/1000 -> -412.8035404 | F19: ='[1]Hoja de trabajo'!L502/1000 -> 11184.80403 | G19: 1
A20: Equipos terminales -Teléfonos Públicos | B20: NOTA1 | C20: 30112 | D20: ='[1]Hoja de trabajo'!J507/1000 -> 59382.20809 | E20: ='[1]Hoja de trabajo'!K507/1000 -> -2310.486116 | F20: ='[1]Hoja de trabajo'!L507/1000 -> 57071.72197 | G20: 1
A21: Equipos Terminales -Televisión de Paga | B21: NOTA1 | C21: 30113 | D21: ='[1]Hoja de trabajo'!J514/1000 -> 155956.6756 | E21: ='[1]Hoja de trabajo'!K514/1000 -> -6680.981808 | F21: ='[1]Hoja de trabajo'!L514/1000 -> 149275.6938 | G21: 1
A22: Equipos Terminales -Internet Fijo | B22: NOTA1 | C22: 30114 | D22: ='[1]Hoja de trabajo'!J525/1000 -> 432153.097 | E22: ='[1]Hoja de trabajo'!K525/1000 -> -23703.19983 | F22: ='[1]Hoja de trabajo'!L525/1000 -> 408449.8972 | G22: 1
A23: Equipos Terminales -Telefonía Móvil | B23: NOTA1 | C23: 30115 | D23: ='[1]Hoja de trabajo'!J532/1000 -> 13686.63869 | E23: ='[1]Hoja de trabajo'!K532/1000 -> 127.39499 | F23: ='[1]Hoja de trabajo'!L532/1000 -> 13814.03368 | G23: 1
A24: Equipos Terminales -Internet Móvil | B24: NOTA1 | C24: 30116 | D24: ='[1]Hoja de trabajo'!J537/1000 -> 0 | E24: ='[1]Hoja de trabajo'!K537/1000 -> 0 | F24: ='[1]Hoja de trabajo'!L537/1000 -> 0 | G24: 1
A25: Otros Equipos Terminales | B25: NOTA1 | C25: 30117 | D25: ='[1]Hoja de trabajo'!J538/1000 -> 0 | E25: ='[1]Hoja de trabajo'!K538/1000 -> 0 | F25: ='[1]Hoja de trabajo'!L538/1000 -> 0 | G25: 1
A26: Planta y Equipo de Acceso Local | B26: NOTA1 | C26: 3012 | D26: ='[1]Hoja de trabajo'!J539/1000 -> 182435.5647 | E26: ='[1]Hoja de trabajo'!K539/1000 -> -4793.805585 | F26: ='[1]Hoja de trabajo'!L539/1000 -> 177641.7591 | G26: 1
A27: Equipos Centrales y de agregación | B27: NOTA1 | C27: 3013 | D27: =+D28+D29+D30+D31+D32+D33+D34+D35 -> 306971.2432 | E27: =+E28+E29+E30+E31+E32+E33+E34+E35 -> -22084.54957 | F27: =+F28+F29+F30+F31+F32+F33+F34+F35 -> 284886.6937 | G27: 1
A28: Centrales Locales | B28: NOTA1 | C28: 30131 | D28: ='[1]Hoja de trabajo'!J549/1000 -> 0 | E28: ='[1]Hoja de trabajo'!K549/1000 -> 0 | F28: ='[1]Hoja de trabajo'!L549/1000 -> 0 | G28: 1
A29: Centrales de Larga Distancia Nacional | B29: NOTA1 | C29: 30132 | D29: ='[1]Hoja de trabajo'!J550/1000 -> 41946.12521 | E29: ='[1]Hoja de trabajo'!K550/1000 -> -4899.69101 | F29: ='[1]Hoja de trabajo'!L550/1000 -> 37046.4342 | G29: 1
A30: Centrales de Larga Distancia Internacional | B30: NOTA1 | C30: 30133 | D30: ='[1]Hoja de trabajo'!J555/1000 -> 1198.028696 | E30: ='[1]Hoja de trabajo'!K555/1000 -> -139.9407073 | F30: ='[1]Hoja de trabajo'!L555/1000 -> 1058.087989 | G30: 1
A31: Controladores | B31: NOTA1 | C31: 30134 | D31: ='[1]Hoja de trabajo'!J560/1000 -> 63804.00867 | E31: ='[1]Hoja de trabajo'!K560/1000 -> -1901.335251 | F31: ='[1]Hoja de trabajo'!L560/1000 -> 61902.67342 | G31: 1
A32: Gateways | B32: NOTA1 | C32: 30135 | D32: ='[1]Hoja de trabajo'!J575/1000 -> 5246.67551 | E32: ='[1]Hoja de trabajo'!K575/1000 -> -587.7611895 | F32: ='[1]Hoja de trabajo'!L575/1000 -> 4658.91432 | G32: 1
A33: Cabeceras | B33: NOTA1 | C33: 30136 | D33: ='[1]Hoja de trabajo'!J580/1000 -> 10495.71086 | E33: ='[1]Hoja de trabajo'!K580/1000 -> -436.8790515 | F33: ='[1]Hoja de trabajo'!L580/1000 -> 10058.83181 | G33: 1
A34: Transmisión de Datos (Servicio Final) | B34: NOTA1 | C34: 30137 | D34: ='[1]Hoja de trabajo'!J589/1000 -> 184280.6943 | E34: ='[1]Hoja de trabajo'!K589/1000 -> -14118.94236 | F34: ='[1]Hoja de trabajo'!L589/1000 -> 170161.7519 | G34: 1
A35: Otros equipos centrales | B35: NOTA1 | C35: 30138 | D35: 0 | E35: 0 | F35: 0 | G35: 1
A36: Transmisión (Gran capacidad) | B36: NOTA1 | C36: 3014 | D36: =+D37+D38+D39+D40+D41+D42 -> 956717.9964 | E36: =+E37+E38+E39+E40+E41+E42 -> -61449.40238 | F36: =+F37+F38+F39+F40+F41+F42 -> 895268.594 | G36: 1
A37: Cables de Transmisión (excluidos internacional) | B37: NOTA1 | C37: 30141 | D37: ='[1]Hoja de trabajo'!J598/1000 -> 460922.6399 | E37: ='[1]Hoja de trabajo'!K598/1000 -> -25833.37763 | F37: ='[1]Hoja de trabajo'!L598/1000 -> 435089.2623 | G37: 1
A38: Equipos de Transmisión (excluidos internacional) | B38: NOTA1 | C38: 30142 | D38: ='[1]Hoja de trabajo'!J607/1000 -> 236272.1625 | E38: ='[1]Hoja de trabajo'!K607/1000 -> -11658.40106 | F38: ='[1]Hoja de trabajo'!L607/1000 -> 224613.7615 | G38: 1
A39: Equipos de Transmisión Radio | B39: NOTA1 | C39: 30143 | D39: ='[1]Hoja de trabajo'!J628/1000 -> 207828.5615 | E39: ='[1]Hoja de trabajo'!K628/1000 -> -18915.86621 | F39: ='[1]Hoja de trabajo'!L628/1000 -> 188912.6952 | G39: 1
A40: Equipos de Transmisión por Satélite | B40: NOTA1 | C40: 30144 | D40: ='[1]Hoja de trabajo'!J641/1000 -> 38884.60829 | E40: ='[1]Hoja de trabajo'!K641/1000 -> -4665.325702 | F40: ='[1]Hoja de trabajo'!L641/1000 -> 34219.28259 | G40: 1
A41: Cables y Equipos internacionales (excluyendo satélite) | B41: NOTA1 | C41: 30145 | D41: ='[1]Hoja de trabajo'!J646/1000 -> 2516.38487 | E41: ='[1]Hoja de trabajo'!K646/1000 -> -103.7076983 | F41: ='[1]Hoja de trabajo'!L646/1000 -> 2412.677172 | G41: 1
A42: Otros equipos de transmisión | B42: NOTA1 | C42: 30146 | D42: ='[1]Hoja de trabajo'!J653/1000 -> 10293.63932 | E42: ='[1]Hoja de trabajo'!K653/1000 -> -272.7240816 | F42: ='[1]Hoja de trabajo'!L653/1000 -> 10020.91524 | G42: 1
A43: Otros Activos Fijos Brutos de Comunicaciones | B43: NOTA1 | C43: 3015 | D43: =+D44+D45+D46+D47+D48 -> 1612413.865 | E43: =+E44+E45+E46+E47+E48 -> -1020724.718 | F43: =+F44+F45+F46+F47+F48 -> 591689.1471 | G43: 1
A44: Equipos de Fuerza (Planta Energía Eléctrica) | B44: NOTA1 | C44: 30151 | D44: ='[1]Hoja de trabajo'!J663/1000 -> 72297.17044 | E44: ='[1]Hoja de trabajo'!K663/1000 -> -1195.450789 | F44: ='[1]Hoja de trabajo'!L663/1000 -> 71101.71965 | G44: 1
A45: Sistemas de Gestión de Red | B45: NOTA1 | C45: 30152 | D45: ='[1]Hoja de trabajo'!J674/1000 -> 99239.37727 | E45: ='[1]Hoja de trabajo'!K674/1000 -> -15227.59124 | F45: ='[1]Hoja de trabajo'!L674/1000 -> 84011.78603 | G45: 1
A46: Equipos para Interconexión | B46: NOTA1 | C46: 30153 | D46: ='[1]Hoja de trabajo'!J679/1000 -> 0 | E46: ='[1]Hoja de trabajo'!K679/1000 -> 0 | F46: ='[1]Hoja de trabajo'!L679/1000 -> 0 | G46: 1
A47: Equipos para Circuitos Alquilados | B47: NOTA1 | C47: 30154 | D47: ='[1]Hoja de trabajo'!J680/1000 -> 0 | E47: ='[1]Hoja de trabajo'!K680/1000 -> 0 | F47: ='[1]Hoja de trabajo'!L680/1000 -> 0 | G47: 1
A48: Otros | B48: NOTA1 | C48: 30155 | D48: ='[1]Hoja de trabajo'!J681/1000 -> 1440877.317 | E48: ='[1]Hoja de trabajo'!K681/1000 -> -1004301.676 | F48: ='[1]Hoja de trabajo'!L681/1000 -> 436575.6415 | G48: 1
A49: Terreno, Edificios, Planta y Equipos no de Telecomunicaciones | B49: NOTA1 | C49: 302 | D49: =+D50+D51+D52+D53+D54+D55+D56 -> 1200784.08 | E49: =+E50+E51+E52+E53+E54+E55+E56 -> 233986.0607 | F49: =+F50+F51+F52+F53+F54+F55+F56 -> 1434770.141 | G49: 1
A50: Terrenos | B50: NOTA1 | C50: 3021 | D50: ='[1]Hoja de trabajo'!J728/1000 -> 51033.37272 | E50: ='[1]Hoja de trabajo'!K728/1000 -> 322654.0473 | F50: ='[1]Hoja de trabajo'!L728/1000 -> 373687.42 | G50: 1
A51: Edificios | B51: NOTA1 | C51: 3022 | D51: ='[1]Hoja de trabajo'!J733/1000 -> 524839.2934 | E51: ='[1]Hoja de trabajo'!K733/1000 -> -21024.07225 | F51: ='[1]Hoja de trabajo'!L733/1000 -> 503815.2211 | G51: 1
A52: Vehículos y Ayudas Mecánicas | B52: NOTA1 | C52: 3023 | D52: ='[1]Hoja de trabajo'!J744/1000 -> 12365.68943 | E52: ='[1]Hoja de trabajo'!K744/1000 -> -1050.5146 | F52: ='[1]Hoja de trabajo'!L744/1000 -> 11315.17483 | G52: 1
A53: Equipos Sistemas Informáticos | B53: NOTA1 | C53: 3024 | D53: ='[1]Hoja de trabajo'!J753/1000 -> 22736.75436 | E53: ='[1]Hoja de trabajo'!K753/1000 -> -3781.975126 | F53: ='[1]Hoja de trabajo'!L753/1000 -> 18954.77923 | G53: 1
A54: Edificios en arrendamiento financiero | B54: NOTA1 | C54: 3025 | D54: ='[1]Hoja de trabajo'!J764/1000 -> 296677.2271 | E54: ='[1]Hoja de trabajo'!K764/1000 -> -25116.45342 | F54: ='[1]Hoja de trabajo'!L764/1000 -> 271560.7737 | G54: 1
A55: Otros activos bajo la forma de arrendamiento o leasing | B55: NOTA1 | C55: 3026 | D55: ='[1]Hoja de trabajo'!J767/1000 -> 255801.471 | E55: ='[1]Hoja de trabajo'!K767/1000 -> -28614.53444 | F55: ='[1]Hoja de trabajo'!L767/1000 -> 227186.9365 | G55: 1
A56: Otros Activos no de comunicaciones | B56: NOTA1 | C56: 3027 | D56: ='[1]Hoja de trabajo'!J776/1000 -> 37330.2724 | E56: ='[1]Hoja de trabajo'!K776/1000 -> -9080.436737 | F56: ='[1]Hoja de trabajo'!L776/1000 -> 28249.83566 | G56: 1
A57: Activos Intangibles | B57: NOTA1 | C57: 31 | D57: =+D58+D59+D60+D61+D62+D63 -> 1099174.645 | E57: =+E58+E59+E60+E61+E62+E63 -> -82924.42703 | F57: =+F58+F59+F60+F61+F62+F63 -> 1016250.218 | G57: 1
A58: Concesiones | B58: NOTA1 | C58: 311 | D58: ='[1]Hoja de trabajo'!J792/1000 -> 728092.3807 | E58: ='[1]Hoja de trabajo'!K792/1000 -> -285649.3248 | F58: ='[1]Hoja de trabajo'!L792/1000 -> 442443.0559 | G58: 1
A59: Licencias | B59: NOTA1 | C59: 312 | D59: ='[1]Hoja de trabajo'!J797/1000 -> 456842.5165 | E59: ='[1]Hoja de trabajo'!K797/1000 -> -5099.75412 | F59: ='[1]Hoja de trabajo'!L797/1000 -> 451742.7624 | G59: 1
A60: Patentes y propiedad intelectual | B60: NOTA1 | C60: 313 | D60: ='[1]Hoja de trabajo'!J802/1000 -> 0 | E60: ='[1]Hoja de trabajo'!K802/1000 -> 0 | F60: ='[1]Hoja de trabajo'!L802/1000 -> 0 | G60: 1
A61: Software | B61: NOTA1 | C61: 314 | D61: ='[1]Hoja de trabajo'!J803/1000 -> 6079.14307 | E61: ='[1]Hoja de trabajo'!K803/1000 -> 30.84244127 | F61: ='[1]Hoja de trabajo'!L803/1000 -> 6109.985511 | G61: 1
A62: Investigación y Desarrollo | B62: NOTA1 | C62: 315 | D62: ='[1]Hoja de trabajo'!J808/1000 -> 0 | E62: ='[1]Hoja de trabajo'!K808/1000 -> 0 | F62: ='[1]Hoja de trabajo'!L808/1000 -> 0 | G62: 1
A63: Otros Activos Intangibles | B63: NOTA1 | C63: 316 | D63: ='[1]Hoja de trabajo'!J809/1000 -> -91839.39525 | E63: ='[1]Hoja de trabajo'!K809/1000 -> 207793.8094 | F63: ='[1]Hoja de trabajo'!L809/1000 -> 115954.4142 | G63: 1
A64: Otros Activos No Corrientes | B64: NOTA1 | C64: 32 | D64: ='[1]Hoja de trabajo'!J821/1000 -> 0 | E64: ='[1]Hoja de trabajo'!K821/1000 -> 333130.0227 | F64: ='[1]Hoja de trabajo'!L821/1000 -> 333130.0227 | G64: 1
A65: Depreciación del Activo Fijo Bruto, y Amortización | B65: NOTA1 | C65: 33 | D65: =+D66+D98+D105 -> -2599052.438 | E65: =+E66+E98+E105 -> 492828.6831 | F65: =+F66+F98+F105 -> -2106223.754 | G65: 1
A66: Depreciación de Planta y Equipo de Comunicaciones | B66: NOTA1 | C66: 341 | D66: =+D67+D75+D76+D85+D92 -> -1703460.802 | E66: =+E67+E75+E76+E85+E92 -> 423903.9178 | F66: =+F67+F75+F76+F85+F92 -> -1279556.884 | G66: 1
A67: Equipos terminales | B67: NOTA1 | C67: 3411 | D67: =D68+D69+D70+D71+D72+D73+D74 -> -475314.0926 | E67: =E68+E69+E70+E71+E72+E73+E74 -> 20701.22691 | F67: =F68+F69+F70+F71+F72+F73+F74 -> -454612.8657 | G67: 1
A68: Equipos terminales -Teléfonos de Abonados | B68: NOTA1 | C68: 34111 | D68: ='[1]Hoja de trabajo'!J829/1000 -> -8049.700192 | E68: ='[1]Hoja de trabajo'!K829/1000 -> 184.6747497 | F68: ='[1]Hoja de trabajo'!L829/1000 -> -7865.025442 | G68: 1
A69: Equipos terminales -Teléfonos Públicos | B69: NOTA1 | C69: 34112 | D69: ='[1]Hoja de trabajo'!J834/1000 -> -35250.02441 | E69: ='[1]Hoja de trabajo'!K834/1000 -> 1568.913778 | F69: ='[1]Hoja de trabajo'!L834/1000 -> -33681.11063 | G69: 1
A70: Equipos Terminales -Televisión de Paga | B70: NOTA1 | C70: 34113 | D70: ='[1]Hoja de trabajo'!J841/1000 -> -125580.4234 | E70: ='[1]Hoja de trabajo'!K841/1000 -> 3448.39233 | F70: ='[1]Hoja de trabajo'!L841/1000 -> -122132.031 | G70: 1
A71: Equipos Terminales -Internet Fijo | B71: NOTA1 | C71: 34114 | D71: ='[1]Hoja de trabajo'!J852/1000 -> -293996.5444 | E71: ='[1]Hoja de trabajo'!K852/1000 -> 15499.24605 | F71: ='[1]Hoja de trabajo'!L852/1000 -> -278497.2983 | G71: 1
A72: Equipos Terminales -Telefonía Móvil | B72: NOTA1 | C72: 34115 | D72: ='[1]Hoja de trabajo'!J859/1000 -> -12437.40027 | E72: ='[1]Hoja de trabajo'!K859/1000 -> 0 | F72: ='[1]Hoja de trabajo'!L859/1000 -> -12437.40027 | G72: 1
A73: Equipos Terminales -Internet Móvil | B73: NOTA1 | C73: 34116 | D73: ='[1]Hoja de trabajo'!J864/1000 -> 0 | E73: ='[1]Hoja de trabajo'!K864/1000 -> 0 | F73: ='[1]Hoja de trabajo'!L864/1000 -> 0 | G73: 1
A74: Otros Equipos Terminales | B74: NOTA1 | C74: 34117 | D74: ='[1]Hoja de trabajo'!J865/1000 -> 0 | E74: ='[1]Hoja de trabajo'!K865/1000 -> 0 | F74: ='[1]Hoja de trabajo'!L865/1000 -> 0 | G74: 1
A75: Planta y Equipo de Acceso Local | B75: NOTA1 | C75: 3412 | D75: ='[1]Hoja de trabajo'!J866/1000 -> -126246.7601 | E75: ='[1]Hoja de trabajo'!K866/1000 -> 1333.330702 | F75: ='[1]Hoja de trabajo'!L866/1000 -> -124913.4294 | G75: 1
A76: Equipos Centrales y de agregación | B76: NOTA1 | C76: 3413 | D76: =+D77+D78+D79+D80+D81+D82+D83+D84 -> -193678.0901 | E76: =+E77+E78+E79+E80+E81+E82+E83+E84 -> 16468.88757 | F76: =+F77+F78+F79+F80+F81+F82+F83+F84 -> -177209.2025 | G76: 1
A77: Centrales Locales | B77: NOTA1 | C77: 34131 | D77: ='[1]Hoja de trabajo'!J876/1000 -> 0 | E77: ='[1]Hoja de trabajo'!K876/1000 -> 0 | F77: ='[1]Hoja de trabajo'!L876/1000 -> 0 | G77: 1
A78: Centrales de Larga Distancia Nacional | B78: NOTA1 | C78: 34132 | D78: ='[1]Hoja de trabajo'!J877/1000 -> -31479.67241 | E78: ='[1]Hoja de trabajo'!K877/1000 -> 4166.656915 | F78: ='[1]Hoja de trabajo'!L877/1000 -> -27313.0155 | G78: 1
A79: Centrales de Larga Distancia Internacional | B79: NOTA1 | C79: 34133 | D79: ='[1]Hoja de trabajo'!J882/1000 -> -899.0949867 | E79: ='[1]Hoja de trabajo'!K882/1000 -> 119.0044259 | F79: ='[1]Hoja de trabajo'!L882/1000 -> -780.0905608 | G79: 1
A80: Controladores | B80: NOTA1 | C80: 34134 | D80: ='[1]Hoja de trabajo'!J887/1000 -> -29641.09143 | E80: ='[1]Hoja de trabajo'!K887/1000 -> 846.0944278 | F80: ='[1]Hoja de trabajo'!L887/1000 -> -28794.997 | G80: 1
A81: Gateways | B81: NOTA1 | C81: 34135 | D81: ='[1]Hoja de trabajo'!J902/1000 -> -2428.21006 | E81: ='[1]Hoja de trabajo'!K902/1000 -> 540.0718864 | F81: ='[1]Hoja de trabajo'!L902/1000 -> -1888.138174 | G81: 1
A82: Cabeceras | B82: NOTA1 | C82: 34136 | D82: ='[1]Hoja de trabajo'!J907/1000 -> -5091.38021 | E82: ='[1]Hoja de trabajo'!K907/1000 -> 209.6693329 | F82: ='[1]Hoja de trabajo'!L907/1000 -> -4881.710877 | G82: 1
A83: Transmisión de Datos (Servicio Final) | B83: NOTA1 | C83: 34137 | D83: ='[1]Hoja de trabajo'!J916/1000 -> -124138.641 | E83: ='[1]Hoja de trabajo'!K916/1000 -> 10587.39058 | F83: ='[1]Hoja de trabajo'!L916/1000 -> -113551.2504 | G83: 1
A84: Otros equipos centrales | B84: NOTA1 | C84: 34138 | D84: ='[1]Hoja de trabajo'!J923/1000 -> 0 | E84: ='[1]Hoja de trabajo'!K923/1000 -> 0 | F84: ='[1]Hoja de trabajo'!L923/1000 -> 0 | G84: 1
A85: Transmisión (Gran capacidad) | B85: NOTA1 | C85: 3414 | D85: =+D86+D87+D88+D89+D90+D91 -> -317294.3511 | E85: =+E86+E87+E88+E89+E90+E91 -> 36566.20765 | F85: =+F86+F87+F88+F89+F90+F91 -> -280728.1435 | G85: 1
A86: Cables de Transmisión (excluidos internacional) | B86: NOTA1 | C86: 34141 | D86: ='[1]Hoja de trabajo'!J925/1000 -> -131421.0013 | E86: ='[1]Hoja de trabajo'!K925/1000 -> 11699.40457 | F86: ='[1]Hoja de trabajo'!L925/1000 -> -119721.5967 | G86: 1
A87: Equipos de Transmisión (excluidos internacional) | B87: NOTA1 | C87: 34142 | D87: ='[1]Hoja de trabajo'!J934/1000 -> -85313.58636 | E87: ='[1]Hoja de trabajo'!K934/1000 -> 7424.112476 | F87: ='[1]Hoja de trabajo'!L934/1000 -> -77889.47389 | G87: 1
A88: Equipos de Transmisión Radio | B88: NOTA1 | C88: 34143 | D88: ='[1]Hoja de trabajo'!J955/1000 -> -73208.7057 | E88: ='[1]Hoja de trabajo'!K955/1000 -> 13115.77703 | F88: ='[1]Hoja de trabajo'!L955/1000 -> -60092.92867 | G88: 1
A89: Equipos de Transmisión por Satélite | B89: NOTA1 | C89: 34144 | D89: ='[1]Hoja de trabajo'!J968/1000 -> -22704.15971 | E89: ='[1]Hoja de trabajo'!K968/1000 -> 4141.721734 | F89: ='[1]Hoja de trabajo'!L968/1000 -> -18562.43798 | G89: 1
A90: Cables y Equipos internacionales (excluyendo satélite) | B90: NOTA1 | C90: 34145 | D90: ='[1]Hoja de trabajo'!J973/1000 -> -657.2417113 | E90: ='[1]Hoja de trabajo'!K973/1000 -> 51.94799818 | F90: ='[1]Hoja de trabajo'!L973/1000 -> -605.2937131 | G90: 1
A91: Otros equipos de transmisión | B91: NOTA1 | C91: 34146 | D91: ='[1]Hoja de trabajo'!J980/1000 -> -3989.65632 | E91: ='[1]Hoja de trabajo'!K980/1000 -> 133.2438301 | F91: ='[1]Hoja de trabajo'!L980/1000 -> -3856.41249 | G91: 1
A92: Otros Activos Fijos Brutos de Comunicaciones | B92: NOTA1 | C92: 3415 | D92: =+D93+D94+D95+D96+D97 -> -590927.5081 | E92: =+E93+E94+E95+E96+E97 -> 348834.2649 | F92: =+F93+F94+F95+F96+F97 -> -242093.2431 | G92: 1
A93: Equipos de Fuerza (Planta Energía Eléctrica) | B93: NOTA1 | C93: 34151 | D93: ='[1]Hoja de trabajo'!J990/1000 -> -29185.84547 | E93: ='[1]Hoja de trabajo'!K990/1000 -> 3664.219389 | F93: ='[1]Hoja de trabajo'!L990/1000 -> -25521.62608 | G93: 1
A94: Sistemas de Gestión de Red | B94: NOTA1 | C94: 34152 | D94: ='[1]Hoja de trabajo'!J1001/1000 -> -47338.27669 | E94: ='[1]Hoja de trabajo'!K1001/1000 -> 13414.95504 | F94: ='[1]Hoja de trabajo'!L1001/1000 -> -33923.32165 | G94: 1
A95: Equipos para Interconexión | B95: NOTA1 | C95: 34153 | D95: ='[1]Hoja de trabajo'!J1006/1000 -> 0 | E95: ='[1]Hoja de trabajo'!K1006/1000 -> 0 | F95: ='[1]Hoja de trabajo'!L1006/1000 -> 0 | G95: 1
A96: Equipos para Circuitos Alquilados | B96: NOTA1 | C96: 34154 | D96: ='[1]Hoja de trabajo'!J1007/1000 -> 0 | E96: ='[1]Hoja de trabajo'!K1007/1000 -> 0 | F96: ='[1]Hoja de trabajo'!L1007/1000 -> 0 | G96: 1
A97: Otros | B97: NOTA1 | C97: 34155 | D97: ='[1]Hoja de trabajo'!J1008/1000 -> -514403.3859 | E97: ='[1]Hoja de trabajo'!K1008/1000 -> 331755.0905 | F97: ='[1]Hoja de trabajo'!L1008/1000 -> -182648.2954 | G97: 1
A98: Depreciación de Edificios, y Planta y Equipos no de Telecomunicaciones | B98: NOTA1 | C98: 342 | D98: =+D99+D100+D101+D102+D103+D104 -> -340851.7155 | E98: =+E99+E100+E101+E102+E103+E104 -> 47472.65745 | F98: =+F99+F100+F101+F102+F103+F104 -> -293379.0581 | G98: 1
A99: Edificios | B99: NOTA1 | C99: 3421 | D99: ='[1]Hoja de trabajo'!J1037/1000 -> -81000.16171 | E99: ='[1]Hoja de trabajo'!K1037/1000 -> 6510.628256 | F99: ='[1]Hoja de trabajo'!L1037/1000 -> -74489.53345 | G99: 1
A100: Vehículos y Ayudas Mecánicas | B100: NOTA1 | C100: 3422 | D100: ='[1]Hoja de trabajo'!J1048/1000 -> -8067.93949 | E100: ='[1]Hoja de trabajo'!K1048/1000 -> 920.68397 | F100: ='[1]Hoja de trabajo'!L1048/1000 -> -7147.25552 | G100: 1
A101: Equipos Sistemas Informáticos | B101: NOTA1 | C101: 3423 | D101: ='[1]Hoja de trabajo'!J1057/1000 -> -15902.64658 | E101: ='[1]Hoja de trabajo'!K1057/1000 -> 3665.087136 | F101: ='[1]Hoja de trabajo'!L1057/1000 -> -12237.55944 | G101: 1
A102: Edificios en arrendamiento financiero | B102: NOTA1 | C102: 3424 | D102: ='[1]Hoja de trabajo'!J1068/1000 -> -72625.86147 | E102: ='[1]Hoja de trabajo'!K1068/1000 -> 6554.736618 | F102: ='[1]Hoja de trabajo'!L1068/1000 -> -66071.12485 | G102: 1
A103: Otros activos bajo la forma de arrendamiento o leasing | B103: NOTA1 | C103: 3425 | D103: ='[1]Hoja de trabajo'!J1071/1000 -> -141243.5014 | E103: ='[1]Hoja de trabajo'!K1071/1000 -> 19987.27434 | F103: ='[1]Hoja de trabajo'!L1071/1000 -> -121256.2271 | G103: 1
A104: Otros Activos no de comunicaciones | B104: NOTA1 | C104: 3426 | D104: ='[1]Hoja de trabajo'!J1080/1000 -> -22011.60481 | E104: ='[1]Hoja de trabajo'!K1080/1000 -> 9834.24713 | F104: ='[1]Hoja de trabajo'!L1080/1000 -> -12177.35768 | G104: 1
A105: Amortización de Intangibles | B105: NOTA1 | C105: 343 | D105: =+D106+D107+D108+D109+D110+D111 -> -554739.92 | E105: =+E106+E107+E108+E109+E110+E111 -> 21452.10789 | F105: =+F106+F107+F108+F109+F110+F111 -> -533287.8121 | G105: 1
A106: Concesiones | B106: NOTA1 | C106: 3431 | D106: ='[1]Hoja de trabajo'!J1096/1000 -> -387053.455 | E106: ='[1]Hoja de trabajo'!K1096/1000 -> 179859.4808 | F106: ='[1]Hoja de trabajo'!L1096/1000 -> -207193.9742 | G106: 1
A107: Licencias | B107: NOTA1 | C107: 3432 | D107: ='[1]Hoja de trabajo'!J1101/1000 -> -294740.8248 | E107: ='[1]Hoja de trabajo'!K1101/1000 -> 1138.882871 | F107: ='[1]Hoja de trabajo'!L1101/1000 -> -293601.942 | G107: 1
A108: Patentes y propiedad intelectual | B108: NOTA1 | C108: 3433 | D108: ='[1]Hoja de trabajo'!J1106/1000 -> 0 | E108: ='[1]Hoja de trabajo'!K1106/1000 -> 0 | F108: ='[1]Hoja de trabajo'!L1106/1000 -> 0 | G108: 1
A109: Software | B109: NOTA1 | C109: 3434 | D109: ='[1]Hoja de trabajo'!J1107/1000 -> -1984.87043 | E109: ='[1]Hoja de trabajo'!K1107/1000 -> -13.86446671 | F109: ='[1]Hoja de trabajo'!L1107/1000 -> -1998.734897 | G109: 1
A110: Investigación y Desarrollo | B110: NOTA1 | C110: 3435 | D110: ='[1]Hoja de trabajo'!J1112/1000 -> 0 | E110: ='[1]Hoja de trabajo'!K1112/1000 -> 0 | F110: ='[1]Hoja de trabajo'!L1112/1000 -> 0 | G110: 1
A111: Otros Activos Intangibles | B111: NOTA1 | C111: 3436 | D111: ='[1]Hoja de trabajo'!J1113/1000 -> 129039.2302 | E111: ='[1]Hoja de trabajo'!K1113/1000 -> -159532.3913 | F111: ='[1]Hoja de trabajo'!L1113/1000 -> -30493.16112 | G111: 1
A112: Gastos contratados por anticipado a largo plazo | B112: 18 | C112: 18 | D112: ='[1]Hoja de trabajo'!J1125/1000 -> 5027.245411 | E112: ='[1]Hoja de trabajo'!K1125/1000 -> 0 | F112: ='[1]Hoja de trabajo'!L1125/1000 -> 5027.245411
A113: Activo por impuesto a las ganancias diferido, neto | B113: 49 | C113: 49 | D113: ='[1]Hoja de trabajo'!J1130/1000 -> 55353.78481 | E113: ='[1]Hoja de trabajo'!K1130/1000 -> 0 | F113: ='[1]Hoja de trabajo'!L1130/1000 -> 55353.78481
A114: PASIVO CORRIENTE | D114: =+D115+D116+D117+D118+D119 -> -1555630.463 | E114: =+E115+E116+E117+E118+E119 -> 68.17178 | F114: =+F115+F116+F117+F118+F119 -> -1555562.291
A115: Cuentas por pagar comerciales | B115: 42 | C115: 42 | D115: ='[1]Hoja de trabajo'!J1200/1000 -> -1053134.516 | E115: ='[1]Hoja de trabajo'!K1200/1000 -> 0 | F115: ='[1]Hoja de trabajo'!L1200/1000 -> -1053134.516
A116: Cuentas por pagar a la principal y vinculadas | B116: 43 | C116: 43 | D116: ='[1]Hoja de trabajo'!J1210/1000 -> -43598.41991 | E116: ='[1]Hoja de trabajo'!K1210/1000 -> 0 | F116: ='[1]Hoja de trabajo'!L1210/1000 -> -43598.41991
A117: Deuda Corto Plazo | B117: 45 | C117: 45 | D117: ='[1]Hoja de trabajo'!J1215/1000 -> -22923.07741 | E117: ='[1]Hoja de trabajo'!K1215/1000 -> 0 | F117: ='[1]Hoja de trabajo'!L1215/1000 -> -22923.07741
A118: Otras cuentas por pagar | B118: 46 | C118: 46 | D118: ='[1]Hoja de trabajo'!J1275/1000 -> -287980.1381 | E118: ='[1]Hoja de trabajo'!K1275/1000 -> 68.17178 | F118: ='[1]Hoja de trabajo'!L1275/1000 -> -287911.9663
A119: Ingresos Diferidos | B119: 491 | C119: 491 | D119: ='[1]Hoja de trabajo'!J1278/1000 -> -147994.3114 | E119: ='[1]Hoja de trabajo'!K1278/1000 -> 0 | F119: ='[1]Hoja de trabajo'!L1278/1000 -> -147994.3114
A120: PASIVO NO CORRIENTE | D120: =+D121+D122 -> -245084.8748 | E120: =+E121+E122 -> 0 | F120: =+F121+F122 -> -245084.8748
A121: Ingresos Diferidos | B121: 491 | C121: 491 | D121: ='[1]Hoja de trabajo'!J1299/1000 -> -118868.6078 | E121: ='[1]Hoja de trabajo'!K1299/1000 -> 0 | F121: ='[1]Hoja de trabajo'!L1299/1000 -> -118868.6078
A122: Provisión de desmantelamiento de equipos | B122: 461 | C122: 461 | D122: ='[1]Hoja de trabajo'!J1302/1000 -> -126216.267 | E122: ='[1]Hoja de trabajo'!K1302/1000 -> 0 | F122: ='[1]Hoja de trabajo'!L1302/1000 -> -126216.267
A123: PATRIMONIO NETO | D123: =+D124+D125+D126+D127+D128+D129 -> -5300502.285 | E123: =+E124+E125+E126+E127+E128+E129 -> 2298035.432 | F123: =+F124+F125+F126+F127+F128+F129 -> -3002466.853
A124: Capital Social | B124: 50 | C124: 50 | D124: ='[1]Hoja de trabajo'!J1306/1000 -> -2030882.602 | E124: 0 | F124: -2030882.602
A125: Descuento Capital | B125: 52 | C125: 52 | D125: ='[1]Hoja de trabajo'!J1312/1000 -> -403.5835 | E125: 0 | F125: -403.5835
A126: Reserva Legal | B126: 58 | C126: 58 | D126: ='[1]Hoja de trabajo'!J1315/1000 -> -406176.5204 | E126: 0 | F126: -406176.5204
A127: Otras Reservas | B127: 581 | C127: 581 | D127: ='[1]Hoja de trabajo'!J1318/1000 -> -2801090.467 | E127: 0 | F127: -2801090.467
A128: Resultados por traslación | B128: 59 | C128: 59 | D128: ='[1]Hoja de trabajo'!J1321/1000 -> 13208.84242 | E128: 0 | F128: 13208.84242
A129: Resultados Acumulados | B129: 591 | C129: 591 | D129: ='[1]Hoja de trabajo'!J1324/1000 -> -75157.95433 | E129: ='[1]Hoja de trabajo'!K1324/1000 -> 2298035.432 | F129: ='[1]Hoja de trabajo'!L1324/1000 -> 2222877.478

Sheet NOTA 1
A1: AMERICA MOVIL PERU SAC
A3: NOTA1
A4: Homologación Plan Contable Regulatorio y Cuentas contables Activo Fijo
A6: Código PCR | B6: Descripción Código PCR | C6: Cta Local PCGE | D6: Descripción Código Plan contable | E6: Código Plan Contable
A7: 30111 | B7: Equipos terminales -Teléfonos de Abonados | C7: 3362102139 | D7: CPE - MANTENIMIENTO CLIENTES | E7: NOTA1
A8: 30111 | B8: Equipos terminales -Teléfonos de Abonados | C8: 3362101738 | D8: REVAL. MANTENIMIENTO CLIENTES | E8: NOTA1
A9: 30111 | B9: Equipos terminales -Teléfonos de Abonados | C9: 3362101005 | D9: CPE - CABLE MODEM CLIENTE | E9: NOTA1
A10: 30111 | B10: Equipos terminales -Teléfonos de Abonados | C10: 3362101006 | D10: REVAL. CABLE MODEM CLIENTE | E10: NOTA1
A11: 30112 | B11: Equipos terminales -Teléfonos Públicos | C11: 3369101000 | D11: TELEFONIA PUBLICA RURAL TPR | E11: NOTA1
A12: 30112 | B12: Equipos terminales -Teléfonos Públicos | C12: 3369108000 | D12: REVAL. TELEFONOS PUBLICOS-TELEFONIA PUBLICA RURAL | E12: NOTA1
A13: 30112 | B13: Equipos terminales -Teléfonos Públicos | C13: 3362101007 | D13: PTE - EQUIPO PARA TELEFONIA PUBLICA | E13: NOTA1
A14: 30112 | B14: Equipos terminales -Teléfonos Públicos | C14: 3362101308 | D14: REVAL. EQUIPO PARA TELEFONIA PUBLICA | E14: NOTA1
A15: 30112 | B15: Equipos terminales -Teléfonos Públicos | C15: 3362101723 | D15: PTE - EQUIPO MTTO. TPI/TPE | E15: NOTA1
A16: 30112 | B16: Equipos terminales -Teléfonos Públicos | C16: 3362101023 | D16: REVAL. PTE - Equipo Mtto. TPI/TPE | E16: NOTA1
A17: 30113 | B17: Equipos Terminales -Televisión de Paga | C17: 3362102142 | D17: CPE - SET TOP BOX | E17: NOTA1
A18: 30113 | B18: Equipos Terminales -Televisión de Paga | C18: 3362101209 | D18: REVAL. SET TOP BOX | E18: NOTA1
A19: 30113 | B19: Equipos Terminales -Televisión de Paga | C19: 3362102139 | D19: CPE - MANTENIMIENTO CLIENTES | E19: NOTA1
A20: 30113 | B20: Equipos Terminales -Televisión de Paga | C20: 3362101738 | D20: REVAL. MANTENIMIENTO CLIENTES | E20: NOTA1
A21: 30113 | B21: Equipos Terminales -Televisión de Paga | C21: 3362102138 | D21: CPE - ANTENAS CLIENTES | E21: NOTA1
A22: 30113 | B22: Equipos Terminales -Televisión de Paga | C22: 3362101208 | D22: REVAL. ANTENAS CLIENTES | E22: NOTA1
A23: 30113 | B23: Equipos Terminales -Televisión de Paga | C23: 3362101025 | D23: CPE - LNB | E23: NOTA1
A24: 30113 | B24: Equipos Terminales -Televisión de Paga | C24: 3362101137 | D24: REVAL. LNB | E24: NOTA1
A25: 30113 | B25: Equipos Terminales -Televisión de Paga | C25: 3362102140 | D25: CPE - LNB ABONADO | E25: NOTA1
A26: 30113 | B26: Equipos Terminales -Televisión de Paga | C26: 3362101008 | D26: REVAL. LNB ABONADO | E26: NOTA1
A27: 30114 | B27: Equipos Terminales -Internet Fijo | C27: 3362101003 | D27: CPE - EQUIPO CPE CLIENTES | E27: NOTA1
A28: 30114 | B28: Equipos Terminales -Internet Fijo | C28: 3362101207 | D28: REVAL. EQUIPO CPE CLIENTES | E28: NOTA1
A29: 30114 | B29: Equipos Terminales -Internet Fijo | C29: 3362102139 | D29: CPE - MANTENIMIENTO CLIENTES | E29: NOTA1
A30: 30114 | B30: Equipos Terminales -Internet Fijo | C30: 3362101738 | D30: REVAL. MANTENIMIENTO CLIENTES | E30: NOTA1
A31: 30114 | B31: Equipos Terminales -Internet Fijo | C31: 3362101005 | D31: CPE - CABLE MODEM CLIENTE | E31: NOTA1
A32: 30114 | B32: Equipos Terminales -Internet Fijo | C32: 3362101006 | D32: REVAL. CABLE MODEM CLIENTE | E32: NOTA1
A33: 30115 | B33: Equipos Terminales -Telefonía Móvil | C33: 3369102200 | D33: MSC - CELULARES CLIENTES CONSUMER | E33: NOTA1
A34: 30115 | B34: Equipos Terminales -Telefonía Móvil | C34: 3362101601 | D34: REVAL. CELULARES CLIENTES CONSUMER | E34: NOTA1
A35: 30115 | B35: Equipos Terminales -Telefonía Móvil | C35: 3369102000 | D35: MSC - CELULARES CLIENTES BUSINESS | E35: NOTA1
A36: 30115 | B36: Equipos Terminales -Telefonía Móvil | C36: 3362101602 | D36: REVAL. CELULARES CLIENTES BUSINESS | E36: NOTA1
A37: 3012 | B37: Planta y Equipo de Acceso Local | C37: 3362102144 | D37: UM - ACOMETIDAS/INSTALACION EN CLIENTES | E37: NOTA1
A38: 3012 | B38: Planta y Equipo de Acceso Local | C38: 3362101211 | D38: REVAL. ACOMETIDAS/INSTALACION EN CLIENTES | E38: NOTA1
A39: 3012 | B39: Planta y Equipo de Acceso Local | C39: 3362101031 | D39: UM - ACOPLADORES DE RED | E39: NOTA1
A40: 3012 | B40: Planta y Equipo de Acceso Local | C40: 3362101043 | D40: REVAL. ACOPLADORES DE RED | E40: NOTA1
A41: 3012 | B41: Planta y Equipo de Acceso Local | C41: 3362101116 | D41: UM - AMPLIFICADORES | E41: NOTA1
A42: 3012 | B42: Planta y Equipo de Acceso Local | C42: 3362101119 | D42: REVAL. AMPLIFICADORES | E42: NOTA1
A43: 3012 | B43: Planta y Equipo de Acceso Local | C43: 3362101117 | D43: UM - ANTENAS RECEPTORAS | E43: NOTA1
A44: 3012 | B44: Planta y Equipo de Acceso Local | C44: 3362101120 | D44: REVAL. ANTENAS RECEPTORAS | E44: NOTA1
A45: 30132 | B45: Centrales de Larga Distancia Nacional | C45: 3362101001 | D45: CX - CENTRALES TELEFONICAS ( SOFTSWITCH ) | E45: NOTA1
A46: 30132 | B46: Centrales de Larga Distancia Nacional | C46: 3362101002 | D46: REVAL. CENTRALES TELEFONICAS ( SOFTSWITCH ) | E46: NOTA1
A47: 30132 | B47: Centrales de Larga Distancia Nacional | C47: 3362101011 | D47: CONMUTADORES PARA DATOS | E47: NOTA1
A48: 30132 | B48: Centrales de Larga Distancia Nacional | C48: 3362101101 | D48: REVAL. CONMUTADORES PARA DATOS | E48: NOTA1
A49: 30133 | B49: Centrales de Larga Distancia Internacional | C49: 3362101001 | D49: CX - CENTRALES TELEFONICAS ( SOFTSWITCH ) | E49: NOTA1
A50: 30133 | B50: Centrales de Larga Distancia Internacional | C50: 3362101002 | D50: REVAL. CENTRALES TELEFONICAS ( SOFTSWITCH ) | E50: NOTA1
A51: 30133 | B51: Centrales de Larga Distancia Internacional | C51: 3362101011 | D51: CONMUTADORES PARA DATOS | E51: NOTA1
A52: 30133 | B52: Centrales de Larga Distancia Internacional | C52: 3362101101 | D52: REVAL. CONMUTADORES PARA DATOS | E52: NOTA1
A53: 30134 | B53: Controladores | C53: 3362101000 | D53: BASE STATION CONTROLLER (BSC) | E53: NOTA1
A54: 30134 | B54: Controladores | C54: 3362108000 | D54: REVAL. BASE STATION CONTROLLER (BSC) | E54: NOTA1
A55: 30134 | B55: Controladores | C55: 3362101016 | D55: CENTRAL DE DATOS GPRS | E55: NOTA1
A56: 30134 | B56: Controladores | C56: 3362108001 | D56: REVAL. DE CENTRAL DE DATOS GPRS | E56: NOTA1
A57: 30134 | B57: Controladores | C57: 3362101024 | D57: MOBILE SERVICES SWITCHING CENTER (MSSC) | E57: NOTA1
A58: 30134 | B58: Controladores | C58: 3362101036 | D58: REVAL. MOBILE SERVICES SWITCHING CENTER | E58: NOTA1
A59: 30134 | B59: Controladores | C59: 3362101018 | D59: MSC SERVER | E59: NOTA1
A60: 30134 | B60: Controladores | C60: 3362108004 | D60: REVAL. DE MSC SERVER | E60: NOTA1
A61: 30134 | B61: Controladores | C61: 3362101019 | D61: RADIO NETWORK CONTROLLER | E61: NOTA1
A62: 30134 | B62: Controladores | C62: 3362108005 | D62: REVAL. CX - RADIO NETWORK CONTROLLER (RNC) 3G | E62: NOTA1
A63: 30134 | B63: Controladores | C63: 3362101035 | D63: CENTRAL DE DATOS 4G | E63: NOTA1
A64: 30134 | B64: Controladores | C64: 3362101047 | D64: REVAL. CX - CENTRAL DE DATOS (4G) | E64: NOTA1
A65: 30134 | B65: Controladores | C65: 3362101108 | D65: PTI - CONTROLADORES CMTS | E65: NOTA1
A66: 30134 | B66: Controladores | C66: 3362101227 | D66: REVAL. CONTROLADORES CMTS | E66: NOTA1
A67: 30135 | B67: Gateways | C67: 3362101017 | D67: MEDIA GATEWAY | E67: NOTA1
A68: 30135 | B68: Gateways | C68: 3362108002 | D68: REVAL. DE MEDIA GATEWAY | E68: NOTA1
A69: 30135 | B69: Gateways | C69: 3362101138 | D69: PTI - CONVERSORES | E69: NOTA1
A70: 30135 | B70: Gateways | C70: 3362108007 | D70: REVAL. CONVERSORES | E70: NOTA1
A71: 30136 | B71: Cabeceras | C71: 3362101107 | D71: PTI - CODIFICADORES/DECODIFICADORES | E71: NOTA1
A72: 30136 | B72: Cabeceras | C72: 3362101106 | D72: REVAL. CODIFICADORES/DECODIFICADORES | E72: NOTA1
A73: 30136 | B73: Cabeceras | C73: 3362101030 | D73: PTI - EQUIPO DE CABECERA | E73: NOTA1
A74: 30136 | B74: Cabeceras | C74: 3362101042 | D74: REVAL. EQUIPO DE CABECERA | E74: NOTA1
A75: 30136 | B75: Cabeceras | C75: 3362101110 | D75: PTI - GABINETES/CHASIS/RACKS | E75: NOTA1
A76: 30136 | B76: Cabeceras | C76: 3362101189 | D76: REVAL. GABINETES/CHASIS/RACKS | E76: NOTA1
A77: 30136 | B77: Cabeceras | C77: 3362101112 | D77: PTI - MODULADORES/DEMODULADORES | E77: NOTA1
A78: 30136 | B78: Cabeceras | C78: 3362101186 | D78: REVAL. MODULADORES/DEMODULADORES | E78: NOTA1
A79: 30137 | B79: Transmisión de Datos (Servicio Final) | C79: 3362101109 | D79: PTI - EQUIPO DE ACCESO A RED DE DATOS | E79: NOTA1
A80: 30137 | B80: Transmisión de Datos (Servicio Final) | C80: 3362103139 | D80: REVAL. PTI - EQUIPO DE ACCESO A RED DE DATOS | E80: NOTA1
A81: 30137 | B81: Transmisión de Datos (Servicio Final) | C81: 3362101114 | D81: PTI - SWITCHES | E81: NOTA1
A82: 30137 | B82: Transmisión de Datos (Servicio Final) | C82: 3362107189 | D82: REVAL. SWITCHES | E82: NOTA1
A83: 30137 | B83: Transmisión de Datos (Servicio Final) | C83: 3362101123 | D83: RUTEADORES CELULARES | E83: NOTA1
A84: 30137 | B84: Transmisión de Datos (Servicio Final) | C84: 3362108015 | D84: REVAL. TX - RUTEADORES CELULARES | E84: NOTA1
A85: 30141 | B85: Cables de Transmisión (excluidos internacional) | C85: 3362101026 | D85: PTE - CABLE DE FIBRA OPTICA | E85: NOTA1
A86: 30141 | B86: Cables de Transmisión (excluidos internacional) | C86: 3362101038 | D86: REVAL. CABLE DE FIBRA OPTICA | E86: NOTA1
A87: 30141 | B87: Cables de Transmisión (excluidos internacional) | C87: 3324102309 | D87: PTE - CABLE DE COBRE | E87: NOTA1
A88: 30141 | B88: Cables de Transmisión (excluidos internacional) | C88: 3324108211 | D88: REVAL. CABLE DE COBRE | E88: NOTA1
A89: 30141 | B89: Cables de Transmisión (excluidos internacional) | C89: 3324102300 | D89: TX - CABLE DE FIBRA ÓPTICA | E89: NOTA1
A90: 30141 | B90: Cables de Transmisión (excluidos internacional) | C90: 3324108202 | D90: REVAL. CABLE DE FIBRA OPTICA | E90: NOTA1
A91: 30141 | B91: Cables de Transmisión (excluidos internacional) | C91: 3362101009 | D91: PTE - CABLE COAXIAL | E91: NOTA1
A92: 30141 | B92: Cables de Transmisión (excluidos internacional) | C92: 3362101004 | D92: REVAL. CABLE COAXIAL | E92: NOTA1
A93: 30142 | B93: Equipos de Transmisión (excluidos internacional) | C93: 3362101238 | D93: PTE - NODOS OPTICOS | E93: NOTA1
A94: 30142 | B94: Equipos de Transmisión (excluidos internacional) | C94: 3362101105 | D94: REVAL. NODOS OPTECOS | E94: NOTA1
A95: 30142 | B95: Equipos de Transmisión (excluidos internacional) | C95: 3362101115 | D95: PTI - TRANSMISORES OPTICOS | E95: NOTA1
A96: 30142 | B96: Equipos de Transmisión (excluidos internacional) | C96: 3362103124 | D96: REVAL. PTI - TRANSMISORES OPTICOS | E96: NOTA1
A97: 30142 | B97: Equipos de Transmisión (excluidos internacional) | C97: 3362101139 | D97: TX - CONMUTADORES PARA DATOS | E97: NOTA1
A98: 30142 | B98: Equipos de Transmisión (excluidos internacional) | C98: 3362108010 | D98: REVAL. CONMUTADORES PARA DATOS | E98: NOTA1
A99: 30142 | B99: Equipos de Transmisión (excluidos internacional) | C99: 3362101140 | D99: TX - EQUIPO OPTICO | E99: NOTA1
A100: 30142 | B100: Equipos de Transmisión (excluidos internacional) | C100: 3362108011 | D100: REVAL. EQUIPO OPTICO | E100: NOTA1
A101: 30142 | B101: Equipos de Transmisión (excluidos internacional) | C101: 3362101141 | D101: TX - GABINETES/CHASIS/RACKS | E101: NOTA1
A102: 30142 | B102: Equipos de Transmisión (excluidos internacional) | C102: 3362108012 | D102: REVAL. GABINETES/CHASIS/RACKS | E102: NOTA1
A103: 30142 | B103: Equipos de Transmisión (excluidos internacional) | C103: 3362101014 | D103: TX - MULTIPLEXOR EST.IMPU | E103: NOTA1
A104: 30142 | B104: Equipos de Transmisión (excluidos internacional) | C104: 3362101118 | D104: REVAL. TX - MULTIPLEXOR EST.IMPU | E104: NOTA1
A105: 30142 | B105: Equipos de Transmisión (excluidos internacional) | C105: 3362101122 | D105: MULTIPLEXORES | E105: NOTA1
A106: 30142 | B106: Equipos de Transmisión (excluidos internacional) | C106: 3362108013 | D106: REVAL. MULTIPLEXORES | E106: NOTA1
A107: 30142 | B107: Equipos de Transmisión (excluidos internacional) | C107: 3362101143 | D107: TX - ROUTERS | E107: NOTA1
A108: 30142 | B108: Equipos de Transmisión (excluidos internacional) | C108: 3362108014 | D108: REVAL. ROUTERS | E108: NOTA1
A109: 30142 | B109: Equipos de Transmisión (excluidos internacional) | C109: 3362101124 | D109: TARJETAS | E109: NOTA1
A110: 30142 | B110: Equipos de Transmisión (excluidos internacional) | C110: 3362108016 | D110: REVAL. TARJETAS | E110: NOTA1
A111: 30142 | B111: Equipos de Transmisión (excluidos internacional) | C111: 3362101125 | D111: MICROONDAS | E111: NOTA1
A112: 30142 | B112: Equipos de Transmisión (excluidos internacional) | C112: 3362108017 | D112: REVAL. MICROONDAS | E112: NOTA1
A113: 30143 | B113: Equipos de Transmisión Radio | C113: 3362101126 | D113: BASE TRANSCEIVER STATION (BTS) | E113: NOTA1
A114: 30143 | B114: Equipos de Transmisión Radio | C114: 3362108018 | D114: REVAL. BASE TRANSCEIVER STATION (BTS) | E114: NOTA1
A115: 30143 | B115: Equipos de Transmisión Radio | C115: 3362101127 | D115: REPETIDORES GSM | E115: NOTA1
A116: 30143 | B116: Equipos de Transmisión Radio | C116: 3362108019 | D116: REVAL. REPETIDORES GSM | E116: NOTA1
A117: 30143 | B117: Equipos de Transmisión Radio | C117: 3362101128 | D117: MICROCELULAS GSM | E117: NOTA1
A118: 30143 | B118: Equipos de Transmisión Radio | C118: 3362108020 | D118: REVAL. MV - MICROCELULAS (GSM) | E118: NOTA1
A119: 30143 | B119: Equipos de Transmisión Radio | C119: 3362101129 | D119: UNIVERSAL MOBILE TELECOMMUNICATIONS SYS | E119: NOTA1
A120: 30143 | B120: Equipos de Transmisión Radio | C120: 3362108021 | D120: REVAL. UMTS (3G) | E120: NOTA1
A121: 30143 | B121: Equipos de Transmisión Radio | C121: 3362101130 | D121: REPETIDORES 3G | E121: NOTA1
A122: 30143 | B122: Equipos de Transmisión Radio | C122: 3362101613 | D122: REVAL. REPETIDORES (3G) | E122: NOTA1
A123: 30143 | B123: Equipos de Transmisión Radio | C123: 3362101131 | D123: LONG TERM EVOLUTION (4G) | E123: NOTA1
A124: 30143 | B124: Equipos de Transmisión Radio | C124: 3362108022 | D124: REVAL. LONG TERM EVOLUTION (4G) | E124: NOTA1
A125: 30144 | B125: Equipos de Transmisión por Satélite | C125: 3362101113 | D125: PTI - RECEPTORES SATELITALES/ÓPTICOS | E125: NOTA1
A126: 30144 | B126: Equipos de Transmisión por Satélite | C126: 3362101187 | D126: REVAL. RECEPTORES SATELITALES/ÓPTICOS | E126: NOTA1
A127: 30144 | B127: Equipos de Transmisión por Satélite | C127: 3362101142 | D127: TX - RECEPTORES SATELITALES/ÓPTICOS | E127: NOTA1
A128: 30144 | B128: Equipos de Transmisión por Satélite | C128: 3362101316 | D128: REVAL. RECEPTORES SATELITALES/ÓPTICOS | E128: NOTA1
A129: 30145 | B129: Cables y Equipos internacionales (excluyendo satélite) | C129: 3362101140 | D129: TX - EQUIPO OPTICO | E129: NOTA1
A130: 30145 | B130: Cables y Equipos internacionales (excluyendo satélite) | C130: 3362108011 | D130: REVAL. EQUIPO OPTICO | E130: NOTA1
A131: 30145 | B131: Cables y Equipos internacionales (excluyendo satélite) | C131: 3362101122 | D131: MULTIPLEXORES | E131: NOTA1
A132: 30145 | B132: Cables y Equipos internacionales (excluyendo satélite) | C132: 3362108013 | D132: REVAL. MULTIPLEXORES | E132: NOTA1
A133: 30145 | B133: Cables y Equipos internacionales (excluyendo satélite) | C133: 3362101123 | D133: RUTEADORES CELULARES | E133: NOTA1
A134: 30145 | B134: Cables y Equipos internacionales (excluyendo satélite) | C134: 3362108015 | D134: REVAL. TX - RUTEADORES CELULARES | E134: NOTA1
A135: 30146 | B135: Otros equipos de transmisión | C135: 3362101027 | D135: CANALIZACION | E135: NOTA1
A136: 30146 | B136: Otros equipos de transmisión | C136: 3362101039 | D136: REVAL. CANALIZACION | E136: NOTA1
A137: 30146 | B137: Otros equipos de transmisión | C137: 3362101037 | D137: PTE - MULTITAPS | E137: NOTA1
A138: 30146 | B138: Otros equipos de transmisión | C138: 3362101104 | D138: REVAL. MULTITAPS | E138: NOTA1
A139: 30146 | B139: Otros equipos de transmisión | C139: 3362101028 | D139: PTE - POSTES | E139: NOTA1
A140: 30146 | B140: Otros equipos de transmisión | C140: 3362101040 | D140: REVAL. PTE - POSTES | E140: NOTA1
A141: 30146 | B141: Otros equipos de transmisión | C141: 3362101029 | D141: PTE - SPLITERS | E141: NOTA1
A142: 30146 | B142: Otros equipos de transmisión | C142: 3362101041 | D142: REVAL. SPLITERS | E142: NOTA1
A143: 30151 | B143: Equipos de Fuerza (Planta Energía Eléctrica) | C143: 3362101134 | D143: EQUIPO DE FUERZA | E143: NOTA1
A144: 30151 | B144: Equipos de Fuerza (Planta Energía Eléctrica) | C144: 3362108025 | D144: REVAL. EQUIPO DE FUERZA | E144: NOTA1
A145: 30151 | B145: Equipos de Fuerza (Planta Energía Eléctrica) | C145: 3369101027 | D145: CORRIENTE ALTERNA GPOS. ELECTROGENOS Y TANQ | E145: NOTA1
A146: 30151 | B146: Equipos de Fuerza (Planta Energía Eléctrica) | C146: 3369109310 | D146: REVAL. Corriente Alterna Gpos. Electrogenos y Tanq | E146: NOTA1
A147: 30151 | B147: Equipos de Fuerza (Planta Energía Eléctrica) | C147: 3362101135 | D147: CORRIENTE DIRECTA INVER.RECTIFIC.CONVERT | E147: NOTA1
A148: 30151 | B148: Equipos de Fuerza (Planta Energía Eléctrica) | C148: 3362108026 | D148: REVAL. Corriente Directa Inver.Rectific.Convert | E148: NOTA1
A149: 30151 | B149: Equipos de Fuerza (Planta Energía Eléctrica) | C149: 3369101028 | D149: CORRIENTE DIRECTA BATERIAS. | E149: NOTA1
A150: 30151 | B150: Equipos de Fuerza (Planta Energía Eléctrica) | C150: 3369108312 | D150: REVAL. Corriente Directa Baterias. | E150: NOTA1
A151: 30151 | B151: Equipos de Fuerza (Planta Energía Eléctrica) | C151: 3362101136 | D151: FZA - CORRIENTE DIRECTA ENERGIA SOLAR. | E151: NOTA1
A152: 30151 | B152: Equipos de Fuerza (Planta Energía Eléctrica) | C152: 3362108027 | D152: REVAL. FZA - Corriente Directa Energia Solar. | E152: NOTA1
A153: 30152 | B153: Sistemas de Gestión de Red | C153: 3362101021 | D153: SERVIDORES | E153: NOTA1
A154: 30152 | B154: Sistemas de Gestión de Red | C154: 3362108009 | D154: REVAL. TI - Servidores | E154: NOTA1
A155: 30152 | B155: Sistemas de Gestión de Red | C155: 3362101013 | D155: SERVIDORES (DATA CENTER) | E155: NOTA1
A156: 30152 | B156: Sistemas de Gestión de Red | C156: 3362101215 | D156: REVAL. SERVIDORES DATA CENTER | E156: NOTA1
A157: 30155 | B157: Otros | C157: 3362101012 | D157: MSC - EQUIPO DIVERSO | E157: NOTA1
A158: 30155 | B158: Otros | C158: 3362102124 | D158: REVAL. MSC - EQUIPO DIVERSO | E158: NOTA1
A159: 30155 | B159: Otros | C159: 3351101038 | D159: MSC - EQUIPO DIVERSO - FIJA | E159: NOTA1
A160: 30155 | B160: Otros | C160: 3351108009 | D160: REVAL. MSC - EQUIPO DIVERSO - FIJA | E160: NOTA1
A161: 30155 | B161: Otros | C161: 3362101132 | D161: MV - INSTALAC. EQUIPOS COMUNICAC. ARRENDADOS | E161: NOTA1
A162: 30155 | B162: Otros | C162: 3362108023 | D162: REVAL. MV - Instalac. Equipos Comunicac. Arrendado | E162: NOTA1
A163: 30155 | B163: Otros | C163: 3362101133 | D163: AIRES ACONDICIONADOS | E163: NOTA1
A164: 30155 | B164: Otros | C164: 3362108024 | D164: REVAL. AIRES ACONDICIONADOS | E164: NOTA1
A165: 30155 | B165: Otros | C165: 3392108100 | D165: HABILITACION: SEDE TECNOLOGICA A.C.M. | E165: NOTA1
A166: 30155 | B166: Otros | C166: 3392108200 | D166: HABILITACION: LOC.ADM ,TDAS Y CORNERS A.C.M. | E166: NOTA1
A167: 30155 | B167: Otros | C167: 3392108400 | D167: HABILITACION: SITES A.C.M. | E167: NOTA1
A168: 30155 | B168: Otros | C168: 3392108600 | D168: OTRAS OBRAS EN CURSO A.C.M. | E168: NOTA1
A169: 30155 | B169: Otros | C169: 3392108700 | D169: ACTIVOS POR ASIGNAR A.C.M. | E169: NOTA1
A170: 30155 | B170: Otros | C170: 3392108701 | D170: OBRAS EN CURSO FIJA A.C.M. | E170: NOTA1
A171: 30155 | B171: Otros | C171: 3388800000 | D171: REG.ACM ACTIVO FIJO | E171: NOTA1
A172: 30155 | B172: Otros | C172: 3392101000 | D172: OBRAS EN PROCESO | E172: NOTA1
A173: 30155 | B173: Otros | C173: 3392104000 | D173: OEP BASE TRANSCEIVER | E173: NOTA1
A174: 30155 | B174: Otros | C174: 3392201000 | D174: OBRAS EN PROCESO | E174: NOTA1
A175: 30155 | B175: Otros | C175: 3392102000 | D175: OBRAS EN PROCESO CAC'S | E175: NOTA1
A176: 30155 | B176: Otros | C176: 3362101900 | D176: CAPEX VARIABLE EQUIPOS MENORES | E176: NOTA1
A177: 30155 | B177: Otros | C177: 3324400079 | D177: DESMANTELAMIENTO DE RED | E177: NOTA1
A178: 30155 | B178: Otros | C178: 3362300003 | D178: AMOV - PROV.PLANTA Y EQUIPO | E178: NOTA1
A179: 30155 | B179: Otros | C179: 3362101999 | D179: PROVISION ACTIVO FIJO RADIO BASES | E179: NOTA1
A180: 30155 | B180: Otros | C180: 3369300002 | D180: AMOV - PROV.CELULARES | E180: NOTA1
A181: 30155 | B181: Otros | C181: 3381100000 | D181: CAPEX EN TRÁNSITO-INVENTARIO MANUAL | E181: NOTA1
A182: 30155 | B182: Otros | C182: 3381100100 | D182: CAPEX EN TRÁNSITO-INVENTARIO AUTOMATICO | E182: NOTA1
A183: 30155 | B183: Otros | C183: 3381100101 | D183: CAPEX EN TRÁNSITO-INVENTARIO FIJA (ALMACEN VIRTUAL | E183: NOTA1
A184: 30155 | B184: Otros | C184: 3331102150 | D184: INVENTARIO DE EQUIPOS PARA PROYECTOS | E184: NOTA1
A185: 30155 | B185: Otros | C185: 3331102151 | D185: INVENTARIO DE EQUIPOS PARA PROY DE INFRAESTRU FIJA | E185: NOTA1
A186: 30155 | B186: Otros | C186: 3331102152 | D186: INVENTARIO DE EQUIPOS PARA PROYECTOS TV DIGITAL | E186: NOTA1
A187: 30155 | B187: Otros | C187: 3331102153 | D187: INVENTARIO DE EQUIPOS PARA PROY. TV EQUIPOS ADMINI | E187: NOTA1
A188: 30155 | B188: Otros | C188: 3331102170 | D188: INVENTARIO DE FERRETERÍA PARA PROYECTOS | E188: NOTA1
A189: 30155 | B189: Otros | C189: 3633000001 | D189: DESVALORIZACION DE EQUIPOS PARA PROYECTOS | E189: NOTA1
A190: 30155 | B190: Otros | C190: 6593302002 | D190: CPE - CABLE MODEM CTE CV TRIBUTARIO CV MASIVO (MEN | E190: NOTA1
A191: 30155 | B191: Otros | C191: 6593388002 | D191: REVAL. CPE - CABLE MODEM CTE CV TRIBUTARIO CV MASI | E191: NOTA1
A192: 30155 | B192: Otros | C192: 6593301011 | D192: CPE - EQUIPOS CLIENTES MASIVOS | E192: NOTA1
A193: 30155 | B193: Otros | C193: 6593388000 | D193: REVAL. EQUIPOS CLIENTES MASIVOS | E193: NOTA1
A194: 30155 | B194: Otros | C194: 6593302001 | D194: CPE - SET TOP BOX CV MASIVO (MENORES) | E194: NOTA1
A195: 30155 | B195: Otros | C195: 6593388001 | D195: REVAL. CPE - SET TOP BOX CV MASIVO (MENORES) | E195: NOTA1
A196: 30155 | B196: Otros | C196: 6593302003 | D196: CPE - ANTENAS CLIENTES CV MASIVO (MENORES) | E196: NOTA1
A197: 30155 | B197: Otros | C197: 6593388003 | D197: REVAL. CPE - ANTENAS CLIENTES CV MASIVO (MENORES) | E197: NOTA1
A198: 30155 | B198: Otros | C198: 6593302004 | D198: CPE - LNB ABONADO CV MASIVO (MENORES) | E198: NOTA1
A199: 30155 | B199: Otros | C199: 6593388004 | D199: REVAL. CPE - LNB ABONADO CV MASIVO (MENORES) | E199: NOTA1
A200: 30155 | B200: Otros | C200: 6593302005 | D200: UM - ACOMETIDAS/INSTALACION EN CLIENTES | E200: NOTA1
A201: 30155 | B201: Otros | C201: 6593388005 | D201: REVAL. UM - ACOMETIDAS/INSTALACION EN CLIENTES | E201: NOTA1
A202: 3021 | B202: Terrenos | C202: 3311101000 | D202: TERRENO | E202: NOTA1
... 232 more rows
